bitfinex/quotes_ETHUSD_20251212
["timestamp","ask_amount","ask_price","bid_price","bid_amount"]
[1765511818207,3.07862816,3248.2,3248.1,0.4997]
[1765511819099,3.07862816,3248.2,3248.1,0.9744]
[1765511820008,3.0784505,3248.4,3248.1,0.9744]
[1765511820009,6.73744735,3248.4,3248.1,0.9744]
[1765511820215,0.58047529,3248.3,3248.1,0.4997]
[1765511820720,0.0942,3248.2,3247.9,0.4747]
[1765511820900,0.0045,3248.0,3247.8,0.487]
[1765511821101,0.0898,3247.9,3247.8,0.487]
[1765511821308,0.4548,3248.2,3247.8,0.487]
[1765511821912,0.4548,3248.2,3247.8,0.9617]
[1765511822200,6.15744588,3248.1,3247.8,0.487]
[1765511822392,3.07872294,3248.1,3247.8,0.487]
[1765511822630,3.07872294,3248.1,3248.0,0.4997]
[1765511822798,3.07853338,3248.3,3248.0,0.4997]
[1765511823124,3.07853338,3248.3,3248.2,0.4997]
[1765511823522,6.25126676,3248.3,3247.9,0.4747]
[1765511824126,6.22334369,3248.3,3247.9,0.4747]
[1765511833135,3.14481031,3248.3,3247.9,0.4747]
[1765511833932,6.22334369,3248.3,3247.9,0.4747]
[1765511834129,6.22334369,3248.3,3247.8,0.487]
[1765511834322,0.4512,3248.2,3247.8,0.487]
[1765511836015,6.15744588,3248.1,3247.8,0.487]
[1765511836641,3.56412294,3248.1,3247.8,0.487]
[1765511837244,6.64284588,3248.1,3247.8,0.487]
[1765511838029,3.14281252,3247.9,3247.8,0.487]
[1765511838248,3.07891252,3247.9,3247.8,0.487]
[1765511838442,3.07891252,3247.9,3247.8,0.9775]
[1765511839849,3.14281252,3247.9,3247.8,0.487]
[1765511840048,0.0639,3247.9,3247.8,0.487]
[1765511840343,3.14281252,3247.9,3247.8,0.487]
[1765511841443,3.14281252,3247.9,3247.8,0.001]
[1765511845048,4.37208781,3247.9,3247.8,0.001]
[1765511846151,3.65938781,3247.9,3247.8,0.4915]
[1765511846361,0.58047529,3247.9,3247.8,0.4915]
[1765511846646,0.6542,3248.9,3247.8,0.9898]
[1765511846830,0.58047529,3248.7,3248.0,0.4905]
[1765511847027,0.58047529,3248.5,3248.0,0.9765]
[1765511847224,0.58047529,3248.5,3248.0,1.4748]
[1765511847426,0.58047529,3248.5,3248.1,0.4983]
[1765511848047,1.06587529,3248.5,3248.1,0.4983]
[1765511848446,0.58047529,3248.5,3248.1,0.6842]
[1765511848755,0.58047529,3248.5,3248.4,0.4905]
[1765511848954,3.65881914,3248.5,3248.4,0.4905]
[1765511849253,3.65881914,3248.5,3248.2,0.4983]
[1765511850048,6.73716299,3248.5,3248.2,0.4983]
[1765511850352,0.0639,3248.3,3248.0,0.486]
[1765511850535,0.4812,3248.4,3248.0,0.486]
[1765511851056,0.58047529,3248.2,3248.0,0.486]
[1765511852145,0.0681,3248.1,3248.0,0.486]
[1765511852343,0.58047529,3248.2,3248.0,0.486]
[1765511853051,0.58047529,3248.2,3247.8,0.001]
[1765511853052,3.07881773,3248.0,3247.8,0.001]
[1765511853229,0.2381,3247.9,3247.8,0.001]
[1765511853423,0.7128,3247.9,3247.8,0.001]
[1765511854360,1.29497529,3247.9,3247.8,0.001]
[1765511855272,4.37388781,3247.9,3247.8,0.001]
[1765511855652,4.4047046,3247.9,3247.8,0.001]
[1765511857459,4.8102086,3247.9,3247.8,0.001]
[1765511857664,4.9026996,3247.9,3247.8,0.001]
[1765511859968,10.59560989,3247.9,3247.8,0.001]
[1765511860559,4.9026996,3247.9,3247.8,0.001]
[1765511860746,10.59560989,3247.9,3247.8,0.001]
[1765511863241,8.5375146,3247.9,3247.8,0.001]
[1765511863447,8.0337646,3247.9,3247.8,0.001]
[1765511868016,4.9026996,3247.9,3247.8,0.001]
[1765511868156,8.17651639,3247.9,3247.8,0.001]
[1765511868339,4.9026996,3247.9,3247.8,0.001]
[1765511869861,4.93351639,3247.9,3247.8,0.001]
[1765511870774,3.89748781,3247.9,3247.8,0.001]
[1765511872275,4.20628781,3247.9,3247.8,0.001]
[1765511874983,3.89748781,3247.9,3247.8,0.001]
[1765511875766,10.45140297,3247.9,3247.8,0.001]
[1765511876063,10.42058618,3247.9,3247.8,0.001]
[1765511881799,9.96118618,3247.9,3247.8,0.001]
[1765511885122,3.65938781,3247.9,3247.8,0.4613]
[1765511885822,3.74908781,3247.9,3247.8,0.001]
[1765511886118,4.20478781,3247.9,3247.8,0.001]
[1765511886314,3.74908781,3247.9,3247.8,0.001]
[1765511886627,3.07891252,3247.9,3247.8,0.9585]
[1765511886918,3.65938781,3247.9,3247.8,0.9585]
[1765511890423,3.65938781,3247.9,3247.8,0.4613]
[1765511892126,4.11778781,3247.9,3247.8,0.001]
[1765511892317,4.11408781,3247.9,3247.8,0.001]
[1765511892734,4.1449046,3247.9,3247.8,0.001]
[1765511893632,4.11408781,3247.9,3247.8,0.001]
[1765511894344,4.20838781,3247.9,3247.8,0.001]
[1765511894507,4.37528781,3247.9,3247.8,0.001]
[1765511895032,4.28098781,3247.9,3247.8,0.001]
[1765511895335,4.11408781,3247.9,3247.8,0.001]
[1765511898623,4.20978781,3247.9,3247.8,0.001]
[1765511901546,4.2406046,3247.9,3247.8,0.001]
[1765511903021,4.20978781,3247.9,3247.8,0.001]
[1765511903727,4.11408781,3247.9,3247.8,0.001]
[1765511904321,4.1449046,3247.9,3247.8,0.001]
[1765511904526,4.6461086,3247.9,3247.8,0.001]
[1765511905050,4.76942171,3247.9,3247.8,0.001]
[1765511905244,4.6461086,3247.9,3247.8,0.001]
[1765511905944,5.1447086,3247.9,3247.8,0.001]
[1765511907361,18.1251126,3247.9,3247.8,0.001]
[1765511907562,17.54309581,3247.9,3247.8,0.001]
[1765511908354,17.11480081,3247.9,3247.8,0.001]
[1765511909567,19.25311899,3247.9,3247.8,0.001]
[1765511910562,19.66047999,3247.9,3247.8,0.001]
[1765511910766,14.98767899,3247.9,3247.8,0.001]
[1765511910938,12.77515581,3247.9,3247.8,0.001]
[1765511911569,15.71417881,3247.9,3247.8,0.001]
[1765511912449,5.11389181,3247.9,3247.8,0.001]
[1765511912649,23.01416481,3247.9,3247.8,0.001]
[1765511913360,17.85538781,3247.9,3247.8,0.001]
[1765511913670,17.27947881,3247.9,3247.8,0.001]
[1765511914466,17.68331399,3247.9,3247.8,0.001]
[1765511914665,30.41694199,3247.9,3247.8,0.001]
[1765511915649,11.87772699,3247.9,3247.8,0.001]
[1765511915853,30.41694199,3247.9,3247.8,0.001]
[1765511916766,31.30672899,3247.9,3247.8,0.001]
[1765511917367,30.75552899,3247.9,3247.8,0.001]
[1765511917868,28.17204899,3247.9,3247.8,0.001]
[1765511918946,32.62829799,3247.9,3247.8,0.001]
[1765511920063,31.03325799,3247.9,3247.8,0.001]
[1765511920262,30.62942281,3247.9,3247.8,0.001]
[1765511921192,31.24574881,3247.9,3247.8,0.001]
[1765511921696,27.54783381,3247.9,3247.8,0.001]
[1765511921996,28.65633881,3247.9,3247.8,0.001]
[1765511922600,28.65633881,3247.9,3247.0,0.001]
[1765511922601,0.405504,3247.3,3247.0,0.001]
[1765511922809,11.96422285,3247.1,3247.0,0.001]
[1765511922980,15.04389394,3247.1,3247.0,0.001]
[1765511923158,15.10799394,3247.1,3247.0,0.001]
[1765511924880,15.51349794,3247.1,3247.0,0.001]
[1765511925088,16.01209794,3247.1,3247.0,0.001]
[1765511925779,10.32022416,3247.1,3247.0,0.001]
[1765511926207,4.15874638,3247.1,3247.0,0.9713]
[1765511926503,3.66014638,3247.1,3247.0,0.9713]
[1765511927902,3.07967109,3247.1,3247.0,0.9713]
[1765511929190,3.07958741,3247.2,3247.0,0.9713]
[1765511929395,9.603,3248.6,3247.0,0.9713]
[1765511929396,5.69187378,3248.2,3247.1,1.1634]
[1765511929597,9.3510571,3248.2,3248.1,0.6848]
[1765511929995,9.3510571,3248.2,3248.1,1.1634]
[1765511930619,3.65918332,3248.2,3248.1,1.1634]
[1765511930781,9.3510571,3248.2,3248.1,1.1634]
[1765511931200,3.65918332,3248.2,3248.1,1.1634]
[1765511935186,3.07870803,3248.2,3248.1,1.1634]
[1765511935387,6.1566877,3248.5,3248.1,1.1634]
[1765511935716,0.58047529,3248.4,3248.2,0.4786]
[1765511936418,0.58047529,3248.4,3248.3,0.4917]
[1765511936791,0.58047529,3248.4,3248.3,0.9703]
[1765511937612,3.6589139,3248.4,3248.3,0.9703]
[1765511939823,3.6589139,3248.4,3248.3,0.4917]
[1765511940119,6.80005251,3248.4,3248.0,0.4786]
[1765511944638,3.6589139,3248.4,3248.3,0.4917]
[1765511945948,3.6589139,3248.4,3248.1,0.6717]
[1765511945949,6.80005251,3248.4,3248.1,0.6717]
[1765511946314,9.3478063,3248.4,3248.3,0.4917]
[1765511947438,12.42624491,3248.4,3248.1,0.1931]
[1765511947610,12.42624491,3248.4,3248.1,0.6717]
[1765511948543,12.42624491,3248.4,3248.2,0.4786]
[1765511949535,9.3478063,3248.4,3248.3,0.4917]
[1765511950038,3.6589139,3248.4,3248.3,0.9703]
[1765511955458,3.6589139,3248.4,3248.3,0.4917]
[1765511956351,12.51174491,3248.4,3248.1,0.1931]
[1765511956568,15.59018352,3248.4,3247.8,0.4817]
[1765511956730,15.59018352,3248.4,3247.9,0.4817]
[1765511957958,9.90129112,3248.4,3247.9,0.4817]
[1765511961869,3.6589139,3248.4,3248.3,0.4735]
[1765511962374,3.6589139,3248.4,3248.3,0.9552]
[1765511966451,3.6589139,3248.4,3248.3,0.4735]
[1765511966659,9.81579112,3248.4,3247.6,0.486]
[1765511966856,3.6589139,3248.4,3248.3,0.4735]
[1765511967350,3.6589139,3248.4,3248.3,0.9552]
[1765511968275,3.6589139,3248.4,3248.3,0.4735]
[1765511968476,9.88629112,3248.4,3247.9,0.4817]
[1765511968677,9.88629112,3248.4,3248.0,0.4817]
[1765511969171,3.6589139,3248.4,3248.3,0.4735]
[1765511969583,6.80785251,3248.4,3248.1,0.1939]
[1765511969749,6.80785251,3248.4,3248.1,0.6756]
[1765511971478,6.80785251,3248.4,3248.1,0.1939]
[1765511971777,6.73735251,3248.4,3248.2,0.4817]
[1765511973177,6.73735251,3248.4,3248.1,0.1939]
[1765511973354,9.81579112,3248.4,3247.9,0.4817]
[1765511975702,3.6589139,3248.4,3248.3,0.4735]
[1765511976486,6.80785251,3248.4,3248.1,0.4817]
[1765511976878,9.88629112,3248.4,3247.6,0.486]
[1765511977069,9.88629112,3248.4,3248.0,0.4817]
[1765511984087,0.0047,3248.1,3247.7,0.472]
[1765511985273,0.0047,3248.1,3247.1,0.1931]
[1765511985274,0.0842,3247.8,3247.2,0.472]
[1765511985795,0.58047529,3247.6,3247.2,0.472]
[1765511985998,0.58047529,3247.6,3247.5,0.4833]
[1765511986393,0.58047529,3247.6,3247.5,0.9553]
[1765511987807,3.65967223,3247.6,3247.5,0.9553]
[1765511991011,6.73886917,3247.6,3247.2,0.472]
[1765511991314,7.21246917,3247.6,3247.2,0.472]
[1765511992218,3.65967223,3247.6,3247.5,0.4833]
[1765511992587,3.65967223,3247.6,3247.5,0.9553]
[1765511994383,3.65967223,3247.6,3247.5,0.4833]
[1765511997135,3.65967223,3247.6,3247.5,0.9553]
[1765511998152,3.65967223,3247.6,3247.1,0.1931]
[1765511998153,9.90696611,3247.6,3247.1,0.1931]
[1765511998328,0.58047529,3247.3,3247.1,0.6651]
[1765511998833,0.58047529,3247.3,3247.2,0.9553]
[1765511999629,0.58047529,3247.3,3247.2,0.4833]
[1765512000341,0.58047529,3247.3,3247.1,0.1931]
[1765512000342,0.58047529,3247.1,3247.0,0.001]
[1765512000543,6.2704527,3247.1,3247.0,0.001]
[1765512000722,6.3601527,3247.1,3247.0,0.001]
[1765512000930,6.8166527,3247.1,3247.0,0.001]
[1765512001322,7.2221567,3247.1,3247.0,0.001]
[1765512002724,10.30182779,3247.1,3247.0,0.001]
[1765512005345,16.36259328,3247.1,3247.0,0.001]
[1765512005941,16.76642846,3247.1,3247.0,0.001]
[1765512006349,46.76642846,3247.1,3247.0,0.001]
[1765512006752,35.46285646,3247.1,3247.0,0.001]
[1765512006937,34.08727746,3247.1,3247.0,0.001]
[1765512007368,38.50647146,3247.1,3247.0,0.001]
[1765512008043,0.405504,3246.3,3246.2,0.001]
[1765512008242,0.6419,3246.4,3246.2,0.001]
[1765512008243,0.9596,3246.4,3246.2,0.001]
[1765512008431,0.58047529,3246.5,3246.3,0.4833]
[1765512008633,0.891504,3246.7,3246.4,0.4833]
[1765512008944,0.891504,3246.7,3246.2,0.473]
[1765512009337,1.351704,3246.7,3246.2,0.473]
[1765512009535,0.58047529,3246.5,3246.2,0.473]
[1765512009935,0.58047529,3246.5,3246.4,0.4833]
[1765512011043,0.58047529,3246.5,3246.4,0.9553]
[1765512011751,3.66071554,3246.5,3246.4,0.9553]
[1765512012473,3.66071554,3246.5,3246.4,0.4833]
[1765512013585,3.66071554,3246.5,3246.4,0.9466]
[1765512013889,6.82575579,3246.5,3246.2,0.001]
[1765512014053,0.58507529,3246.3,3246.2,0.001]
[1765512014790,0.61589208,3246.3,3246.2,0.001]
[1765512014990,1.08019208,3246.3,3246.2,0.001]
[1765512015480,0.61589208,3246.3,3246.2,0.001]
[1765512015693,3.6963221,3246.3,3246.2,0.001]
[1765512016350,3.66550531,3246.3,3246.2,0.001]
[1765512016548,4.15150531,3246.3,3246.2,0.001]
[1765512017675,3.66090531,3246.3,3246.2,0.9526]
[1765512020679,3.66090531,3246.3,3246.2,0.4715]
[1765512021385,9.82533679,3246.3,3246.2,0.001]
[1765512023082,10.31133679,3246.3,3246.2,0.001]
[1765512023276,10.39173679,3246.3,3246.2,0.001]
[1765512026330,3.66090531,3246.3,3246.2,0.4715]
[1765512026488,3.08043002,3246.3,3246.2,0.9526]
[1765512027282,1.38504067,3247.3,3246.2,0.9526]
[1765512027482,0.486,3247.2,3246.3,0.9516]
[1765512027987,0.486,3247.2,3246.2,0.001]
[1765512027988,4.14605154,3247.2,3247.1,0.4705]
[1765512028177,0.58047529,3247.1,3246.4,0.4811]
[1765512028377,0.58047529,3246.8,3246.4,0.4811]
[1765512028614,0.03081679,3246.7,3246.4,0.4811]
[1765512028782,0.58047529,3246.8,3246.4,0.4811]
[1765512028981,0.58047529,3246.8,3246.6,0.4705]
[1765512029511,0.61129208,3246.8,3246.6,0.4705]
[1765512030002,3.6605258,3246.7,3246.6,0.4705]
[1765512031685,3.6605258,3246.7,3246.6,0.9516]
[1765512035187,3.6605258,3246.7,3246.6,0.4705]
[1765512035392,3.6605258,3246.7,3246.6,0.9516]
[1765512035811,3.6605258,3246.7,3246.6,0.4705]
[1765512036012,3.6605258,3246.7,3246.6,0.9516]
[1765512037918,3.6605258,3246.7,3246.6,0.4705]
[1765512038501,3.6605258,3246.7,3246.6,0.9516]
[1765512043018,0.58047529,3246.6,3246.2,0.001]
[1765512043218,0.58047529,3246.6,3246.2,0.469]
[1765512043528,0.58047529,3246.6,3246.5,0.4753]
[1765512043931,0.58047529,3246.6,3246.5,0.9433]
[1765512044798,3.66062067,3246.6,3246.5,0.9433]
[1765512045437,3.66062067,3246.6,3246.5,0.4753]
[1765512045639,3.66062067,3246.6,3246.5,0.9433]
[1765512050824,3.08014538,3246.6,3246.5,0.9433]
[1765512051348,6.15934218,3247.1,3246.5,0.9433]
[1765512051654,0.58047529,3247.0,3246.6,0.9433]
[1765512051820,0.58047529,3247.0,3246.6,0.468]
[1765512052021,0.58047529,3246.8,3246.7,0.468]
[1765512052348,0.58047529,3246.8,3246.7,0.9433]
[1765512053250,0.58047529,3246.8,3246.7,0.4753]
[1765512053816,0.58047529,3246.8,3246.2,0.001]
[1765512053817,0.67047529,3246.8,3246.2,0.001]
[1765512054043,0.67047529,3246.8,3246.3,0.468]
[1765512054044,0.58047529,3246.6,3246.3,0.468]
[1765512054552,0.58047529,3246.6,3246.5,0.4753]
[1765512055232,0.58047529,3246.6,3246.5,0.9433]
[1765512056241,3.66062067,3246.6,3246.5,0.9433]
[1765512061277,3.66062067,3246.6,3246.5,0.4753]
[1765512061594,3.66062067,3246.6,3246.5,0.9433]
[1765512066369,3.66062067,3246.6,3246.5,0.4753]
[1765512066946,3.65692467,3246.6,3246.5,0.4753]
[1765512067647,3.65692467,3246.6,3246.5,0.9433]
[1765512068884,6.15934218,3247.1,3246.5,1.4293]
[1765512069093,3.66014638,3247.1,3247.0,0.4753]
[1765512069375,3.07967109,3247.1,3247.0,0.9433]
[1765512069953,6.15801464,3247.8,3247.0,0.9433]
[1765512070152,6.15801464,3247.8,3247.2,0.4753]
[1765512070466,0.58047529,3247.7,3247.2,0.9433]
[1765512070858,6.15839388,3247.6,3247.2,0.9433]
[1765512071077,6.15839388,3247.6,3247.3,0.468]
[1765512071278,3.65967223,3247.6,3247.5,0.4753]
[1765512071965,7.20256917,3247.6,3247.1,0.1976]
[1765512072162,10.28176611,3247.6,3247.2,0.468]
[1765512072371,0.0855,3247.5,3247.0,0.1976]
[1765512072770,0.0855,3247.5,3247.0,0.6656]
[1765512072980,15.51128625,3247.6,3247.0,0.6656]
[1765512073492,12.43208931,3247.6,3247.1,0.4938]
[1765512073693,15.51128625,3247.6,3247.1,0.4938]
[1765512076096,6.73886917,3247.6,3247.1,0.4938]
[1765512076399,6.73886917,3247.6,3247.5,0.4889]
[1765512076400,3.65967223,3247.6,3247.5,0.4889]
[1765512078107,0.002,3247.9,3247.5,7.11842014]
[1765512078272,0.002,3247.9,3247.8,0.4889]
[1765512078597,0.002,3247.9,3247.8,0.9392]
[1765512081687,0.002,3247.9,3247.8,4.01820732]
[1765512082010,0.002,3247.9,3247.8,0.9392]
[1765512082909,0.002,3247.9,3247.8,4.01820732]
[1765512083109,0.002,3247.9,3247.8,1.64893729]
[1765512085177,0.002,3247.9,3247.8,0.9392]
[1765512092180,0.002,3247.9,3247.8,4.01820732]
[1765512092509,0.002,3247.9,3247.8,10.11199307]
[1765512093009,0.002,3247.9,3247.8,10.23522184]
[1765512094297,0.002,3247.9,3247.8,10.11199307]
[1765512094484,0.002,3247.9,3247.8,11.43111183]
[1765512102720,0.002,3247.9,3247.8,5.33732608]
[1765512105419,0.002,3247.9,3247.8,5.36811615]
[1765512106231,0.002,3247.9,3247.8,5.74283008]
[1765512106431,0.002,3247.9,3247.8,5.86605354]
[1765512106796,0.002,3247.9,3247.8,5.74283008]
[1765512109246,0.002,3247.9,3247.8,6.11361816]
[1765512109547,0.002,3247.9,3247.8,6.23684655]
[1765512109743,0.002,3247.9,3247.8,5.86605847]
[1765512109946,0.002,3247.9,3247.8,5.33732608]
[1765512112072,0.002,3247.9,3247.8,5.36811615]
[1765512113350,0.002,3247.9,3247.8,5.77362015]
[1765512113547,0.002,3247.9,3247.8,5.74283008]
[1765512113763,0.002,3247.9,3247.8,5.86605885]
[1765512114721,0.002,3247.9,3247.8,5.89684892]
[1765512114922,0.002,3247.9,3247.8,5.86605885]
[1765512115126,0.002,3247.9,3247.8,5.89684892]
[1765512115325,0.002,3247.9,3247.8,5.86605885]
[1765512115956,0.002,3247.9,3247.8,5.89684892]
[1765512116165,0.002,3247.9,3247.8,5.86605885]
[1765512122268,0.4979,3247.9,3247.8,1.44234753]
[1765512122446,0.4979,3247.9,3247.8,0.486]
[1765512125450,0.5514,3247.9,3247.8,0.486]
[1765512127782,3.63031252,3247.9,3247.8,0.486]
[1765512128674,3.63031252,3247.9,3247.5,0.486]
[1765512128869,0.0535,3247.8,3247.5,0.486]
[1765512129100,0.4915,3247.6,3247.5,0.486]
[1765512132065,0.5494,3247.6,3247.5,0.486]
[1765512132866,3.62859694,3247.6,3247.5,0.486]
[1765512133702,3.62859694,3247.6,3246.6,7.38982606]
[1765512133703,3.62859694,3247.6,3246.6,0.4788]
[1765512134004,0.4824,3247.5,3246.7,0.486]
[1765512134177,0.4824,3247.5,3246.8,3.07995301]
[1765512134368,0.4824,3247.5,3246.9,0.3565953]
[1765512135301,0.4824,3247.5,3246.9,3.4364478]
[1765512135604,0.4824,3247.5,3247.0,3.07974212]
[1765512135897,0.4824,3247.5,3247.1,0.486]
[1765512136495,0.0669,3247.2,3247.1,0.486]
[1765512136692,0.0669,3247.2,3247.1,0.87824303]
[1765512137195,0.0669,3247.2,3247.1,0.486]
[1765512137791,3.62477625,3247.2,3246.3,3.08042011]
[1765512137991,6.6374525,3247.2,3246.4,0.486]
[1765512138198,0.4988,3247.1,3246.4,0.486]
[1765512138379,0.4988,3247.1,3246.5,0.35664201]
[1765512139985,3.57849523,3247.1,3246.5,0.35664201]
[1765512140808,0.4988,3247.0,3246.5,0.35664201]
[1765512141208,0.1683,3248.1,3246.5,0.35664201]
[1765512141509,0.4988,3247.6,3246.6,0.4692]
[1765512141706,0.4988,3247.6,3246.6,0.90840823]
[1765512142205,0.4988,3247.6,3246.7,0.4692]
[1765512142409,6.15801464,3247.8,3246.8,0.51679955]
[1765512142612,0.4988,3247.7,3246.8,0.486]
[1765512142781,0.4988,3247.7,3246.8,0.9552]
[1765512143409,0.58047529,3247.5,3246.8,0.9552]
[1765512143580,1.07927529,3247.5,3246.8,0.9552]
[1765512144219,0.58047529,3247.5,3246.8,0.9552]
[1765512144424,0.4988,3247.4,3246.8,0.9552]
[1765512145311,0.4988,3247.4,3246.8,4.0351519]
[1765512145513,0.4988,3247.4,3246.8,4.48258791]
[1765512146114,3.57819322,3247.4,3246.8,4.48258791]
[1765512146494,3.57819322,3247.4,3246.8,1.40263601]
[1765512147813,3.07939322,3247.4,3246.8,0.486]
[1765512148037,0.6483,3246.9,3246.8,0.486]
[1765512148822,0.4825,3246.9,3246.8,0.486]
[1765512149123,0.2336,3247.2,3246.8,1.41070297]
[1765512150026,0.1648,3247.2,3246.8,4.49063952]
[1765512150312,3.07941145,3247.4,3247.1,0.46]
[1765512150809,3.57821145,3247.4,3246.9,1.39387447]
[1765512153030,3.07941145,3247.4,3246.9,0.92467447]
[1765512153233,0.0507,3247.0,3246.9,0.92467447]
[1765512155127,0.4988,3247.3,3246.9,0.92467447]
[1765512156440,0.1668,3247.6,3247.2,0.46]
[1765512156600,3.24600504,3247.6,3247.2,0.946]
[1765512156913,3.74480504,3247.6,3247.2,0.946]
[1765512157305,0.002,3247.9,3247.5,0.46]
[1765512157505,0.002,3247.9,3247.6,0.486]
[1765512157729,3.08091258,3247.9,3247.6,0.486]
[1765512158034,0.0507,3247.7,3247.6,0.486]
[1765512158536,0.545,3247.7,3247.6,0.486]
[1765512159112,0.58047529,3247.6,3247.3,0.92456333]
[1765512159312,0.58047529,3247.6,3247.4,0.486]
[1765512159554,0.4988,3247.5,3246.5,4.00474175]
[1765512159737,0.4988,3247.5,3246.6,0.486]
[1765512160108,0.4988,3247.5,3246.6,1.41067732]
[1765512161332,0.58047529,3247.3,3246.6,1.41067732]
[1765512161507,0.4988,3247.2,3246.6,1.90668813]
[1765512162625,0.0507,3246.7,3246.6,1.90668813]
[1765512163216,0.5267,3246.7,3246.6,0.486]
[1765512163837,0.0507,3246.7,3246.6,0.486]
[1765512165438,0.58047529,3247.4,3246.6,0.9578]
[1765512165744,0.58047529,3247.2,3246.6,1.4094]
[1765512166838,0.58047529,3247.2,3246.6,0.486]
[1765512166839,0.0732,3246.7,3246.6,0.486]
[1765512168549,0.1659,3246.9,3246.6,0.9578]
[1765512168770,3.0797786,3247.0,3246.6,0.9578]
[1765512169180,0.4729,3247.1,3246.6,0.9578]
[1765512169331,0.58047529,3247.2,3246.7,0.4516]
[1765512169534,3.0796154,3247.2,3246.7,0.4516]
[1765512171538,3.5556154,3247.2,3246.7,0.4516]
[1765512180596,0.58047529,3247.3,3247.1,0.4718]
[1765512180765,0.58047529,3247.3,3247.2,0.4718]
[1765512181491,0.478,3247.9,3247.2,0.4718]
[1765512181652,0.4966,3247.3,3247.0,0.486]
[1765512181995,0.4921,3247.1,3247.0,0.486]
[1765512183388,3.07959585,3247.2,3247.0,0.486]
[1765512184001,0.4878,3247.1,3247.0,0.486]
[1765512184456,0.58047529,3247.3,3247.0,0.9578]
[1765512184962,0.58047529,3247.4,3247.2,0.4718]
[1765512185171,5.69540873,3247.9,3247.3,0.4718]
[1765512185172,3.07923016,3247.6,3247.3,0.4718]
[1765512185490,3.07923016,3247.6,3246.8,0.92464597]
[1765512185491,0.58047529,3247.7,3247.4,0.486]
[1765512185805,0.0732,3247.5,3247.4,0.486]
[1765512186500,3.15249176,3247.5,3247.4,0.486]
[1765512186674,0.58047529,3247.4,3246.8,0.486]
[1765512186877,0.58047529,3247.2,3246.8,0.6484]
[1765512187081,0.2354,3246.9,3246.6,0.486]
[1765512187414,0.0732,3246.7,3246.6,0.486]
[1765512187764,0.5452,3246.7,3246.6,0.486]
[1765512188590,3.62525051,3246.7,3246.6,0.486]
[1765512188794,0.58047529,3246.6,3246.2,0.001]
[1765512188956,0.0047,3246.3,3246.2,0.487]
[1765512189494,6.75458402,3246.3,3246.2,0.001]
[1765512190591,9.83501404,3246.3,3246.2,0.001]
[1765512191617,3.66560531,3246.3,3246.2,0.001]
[1765512192020,4.14160531,3246.3,3246.2,0.001]
[1765512193617,4.14160531,3246.3,3246.2,0.4966]
[1765512193618,0.58047529,3246.3,3246.2,0.4966]
[1765512193817,6.15991128,3246.8,3246.2,0.9508]
[1765512194016,0.58047529,3246.7,3246.2,0.9508]
[1765512194604,3.07957625,3247.2,3246.6,0.4956]
[1765512194811,3.07957625,3247.2,3246.7,0.4956]
[1765512195025,3.07947501,3247.4,3247.1,0.4956]
[1765512195265,0.0523,3247.2,3246.8,0.4542]
[1765512195431,0.0523,3247.2,3246.7,0.92469727]
[1765512196066,0.0523,3247.2,3246.8,0.4761]
[1765512196826,3.13193644,3247.2,3246.8,0.4761]
[1765512197666,0.0523,3247.2,3246.8,0.4761]
[1765512198047,3.13189481,3247.2,3246.7,0.92469727]
[1765512198872,3.13189481,3247.2,3246.7,1.589477]
[1765512199037,0.4552,3246.8,3246.5,0.486]
[1765512199427,0.4552,3246.8,3246.5,1.41075998]
[1765512200344,0.4552,3246.8,3246.5,1.88685998]
[1765512203761,0.0939,3246.6,3246.5,0.486]
[1765512206063,0.1668,3247.5,3246.5,1.4478]
[1765512206360,0.58047529,3247.3,3246.6,0.93851183]
[1765512206548,0.58047529,3247.3,3246.6,1.41461183]
[1765512207235,1.07677529,3247.3,3246.6,1.41461183]
[1765512207563,0.0532,3246.7,3246.5,0.92475428]
[1765512207762,0.58047529,3247.1,3246.5,1.41075428]
[1765512208059,1.07677529,3247.1,3246.5,0.486]
[1765512208464,0.4963,3247.0,3246.5,0.486]
[1765512209264,0.58047529,3247.1,3246.6,0.4761]
[1765512209461,3.66024052,3247.1,3246.9,0.4857]
[1765512209663,0.58047529,3247.1,3246.9,0.4857]
[1765512209834,0.0532,3247.0,3246.6,0.4761]
[1765512211439,0.63367529,3247.0,3246.6,0.4761]
[1765512211776,0.0049,3246.7,3246.5,0.486]
[1765512211940,0.0483,3246.6,3246.5,0.486]
[1765512212466,0.5446,3246.6,3246.5,0.486]
[1765512212778,0.5446,3246.6,3246.2,0.487]
[1765512212981,0.4963,3246.6,3246.2,0.487]
[1765512213163,0.0532,3246.3,3246.2,0.487]
[1765512213851,3.57650746,3246.6,3246.2,0.487]
[1765512215737,0.0532,3246.3,3246.2,0.487]
[1765512217844,3.13363002,3246.3,3246.2,0.487]
[1765512218084,0.0532,3246.3,3246.2,0.487]
[1765512219152,3.13363002,3246.3,3246.2,0.487]
[1765512220247,0.0532,3246.3,3246.2,0.487]
[1765512220442,3.13363002,3246.3,3246.2,0.487]
[1765512221380,0.0532,3246.3,3246.2,0.487]
[1765512221681,3.13363002,3246.3,3246.2,0.487]
[1765512221881,3.62543002,3246.3,3246.2,0.487]
[1765512222047,3.62543002,3246.3,3246.2,0.001]
[1765512222646,3.13363002,3246.3,3246.2,0.001]
[1765512223447,1.05537529,3247.3,3246.2,0.9525]
[1765512223644,0.4749,3247.2,3246.4,0.4588]
[1765512224176,0.58047529,3247.0,3246.4,0.4588]
[1765512224675,0.58047529,3247.0,3246.5,0.0308024]
[1765512225681,1.05537529,3247.0,3246.5,0.0308024]
[1765512226053,1.05537529,3247.0,3246.3,0.9787]
[1765512226260,0.58047529,3246.8,3246.3,0.9787]